bitfinex-derivatives/quotes_BTCF0:USTF0_20250811
["timestamp","ask_amount","ask_price","bid_price","bid_amount"]
[1754926705344,1.502,120450.0,120440.0,1.04405504]
[1754926705851,2.4079508,120450.0,120440.0,1.04405504]
[1754926706054,2.4079508,120450.0,120440.0,0.59951842]
[1754926706253,2.4079508,120450.0,120440.0,1.04405504]
[1754926706548,2.4079508,120450.0,120440.0,1.06853504]
[1754926708056,1.5850308,120450.0,120440.0,1.06853504]
[1754926708247,2.4076308,120450.0,120440.0,1.06853504]
[1754926708943,1.502,120450.0,120440.0,0.62399842]
[1754926709149,2.3244,120450.0,120440.0,1.08389504]
[1754926709652,1.502,120450.0,120440.0,1.08389504]
[1754926709857,2.3346,120450.0,120440.0,1.08389504]
[1754926710055,2.4176309,120450.0,120440.0,0.63935842]
[1754926710356,2.4177509,120450.0,120440.0,0.63935842]
[1754926711057,2.4177509,120450.0,120440.0,0.58805842]
[1754926711358,2.4177509,120450.0,120440.0,1.08339504]
[1754926711859,2.4177509,120450.0,120440.0,0.63885842]
[1754926712158,2.4177509,120450.0,120440.0,1.08339504]
[1754926712451,1.5850309,120450.0,120440.0,1.08339504]
[1754926712652,2.33608,120450.0,120440.0,1.08339504]
[1754926712854,1.502,120450.0,120440.0,1.08339504]
[1754926713055,1.83596,120450.0,120440.0,1.08339504]
[1754926713359,1.83588,120450.0,120440.0,1.09172392]
[1754926713565,1.83576,120450.0,120440.0,1.09172392]
[1754926713868,1.83536,120450.0,120440.0,1.09172392]
[1754926714764,1.83536,120450.0,120440.0,1.08339504]
[1754926715160,1.9183908,120450.0,120440.0,0.63885842]
[1754926715365,1.9193108,120450.0,120440.0,1.08339504]
[1754926715961,1.8364,120450.0,120440.0,1.08339504]
[1754926716164,1.83612,120450.0,120440.0,0.63885842]
[1754926716360,1.002,120450.0,120440.0,1.08339504]
[1754926716567,1.836,120450.0,120440.0,1.08339504]
[1754926716762,1.002,120450.0,120440.0,1.08339504]
[1754926717068,0.83596,120450.0,120440.0,1.08339504]
[1754926717268,0.82036,120450.0,120440.0,1.08339504]
[1754926717771,0.80821,120450.0,120440.0,1.08339504]
[1754926718573,0.14944974,120460.0,120450.0,0.0830308]
[1754926718862,0.92587974,120460.0,120450.0,1.01158742]
[1754926719266,0.92571974,120460.0,120450.0,1.01158742]
[1754926719668,0.09311974,120460.0,120450.0,1.01158742]
[1754926719972,0.92559974,120460.0,120450.0,0.4732608]
[1754926720263,0.92547974,120460.0,120450.0,0.4782608]
[1754926720470,0.87993974,120460.0,120450.0,0.4782608]
[1754926720672,0.87993974,120460.0,120450.0,0.4722608]
[1754926720963,0.88093974,120460.0,120450.0,0.4722608]
[1754926721868,0.88393974,120460.0,120450.0,0.4672608]
[1754926722069,0.88393974,120460.0,120450.0,0.1064608]
[1754926722366,0.95008617,120460.0,120450.0,0.1064608]
[1754926722872,0.11772617,120460.0,120450.0,0.1064608]
[1754926723056,0.94940617,120460.0,120450.0,0.94557742]
[1754926723263,0.59106617,120460.0,120450.0,1.01158742]
[1754926723464,0.67409017,120460.0,120450.0,0.5670508]
[1754926723664,0.67409017,120460.0,120450.0,0.2062508]
[1754926723863,0.67409017,120460.0,120450.0,0.65078742]
[1754926724272,0.59106617,120460.0,120450.0,0.65078742]
[1754926724466,1.84956985,120470.0,120460.0,0.0830239]
[1754926724772,2.68030985,120470.0,120460.0,0.1064539]
[1754926724965,2.68018985,120470.0,120460.0,0.0831239]
[1754926725173,1.84946985,120470.0,120460.0,0.0831239]
[1754926725373,2.68066985,120470.0,120460.0,0.0831239]
[1754926725673,2.68266985,120470.0,120460.0,0.0831239]
[1754926726073,2.68566985,120470.0,120460.0,0.0831239]
[1754926726274,3.0648052,120470.0,120460.0,0.0001]
[1754926726465,3.13140436,120470.0,120460.0,0.0831239]
[1754926726667,3.13140436,120470.0,120460.0,0.0001]
[1754926726868,3.13140436,120470.0,120460.0,0.0831239]
[1754926727161,3.13140436,120470.0,120460.0,0.1064539]
[1754926727665,2.30020436,120470.0,120460.0,0.1064539]
[1754926727975,3.13032436,120470.0,120460.0,0.1064539]
[1754926728676,2.30020436,120470.0,120460.0,0.02343]
[1754926728878,1.92106901,120470.0,120460.0,0.0001]
[1754926729176,3.13136935,120470.0,120460.0,0.0001]
[1754926730676,2.30164935,120470.0,120460.0,0.0001]
[1754926730874,3.13060935,120470.0,120460.0,0.0001]
[1754926732478,3.13060935,120470.0,120460.0,0.02343]
[1754926736471,0.0830308,120450.0,120440.0,0.06981072]
[1754926736672,1.57947227,120450.0,120440.0,2e-08]
[1754926736878,0.0830584,120410.0,120400.0,0.1338653]
[1754926737075,0.9096184,120410.0,120400.0,0.1828553]
[1754926737276,0.82656,120410.0,120400.0,0.56199065]
[1754926737571,0.0830584,120410.0,120400.0,0.61542065]
[1754926737778,0.9104584,120410.0,120400.0,0.61552065]
[1754926737981,0.0830584,120410.0,120400.0,0.61552065]
[1754926738175,0.0830584,120410.0,120400.0,0.680962]
[1754926738372,0.827,120410.0,120400.0,0.8470896]
[1754926738573,0.9100584,120410.0,120400.0,0.8470896]
[1754926739071,0.9145284,120410.0,120400.0,0.8470896]
[1754926739380,0.9145284,120410.0,120400.0,1.2078896]
[1754926739582,0.00467,120410.0,120400.0,1.2078896]
[1754926739776,0.9140884,120410.0,120400.0,0.8470896]
[1754926739977,0.9140884,120410.0,120400.0,1.2078896]
[1754926740785,0.0877284,120410.0,120400.0,1.2078896]
[1754926740983,0.0830584,120410.0,120400.0,1.2078896]
[1754926741287,0.9087784,120410.0,120400.0,1.2078896]
[1754926741782,0.9134484,120410.0,120400.0,0.4025129]
[1754926741974,0.9253184,120410.0,120400.0,0.4025129]
[1754926742376,0.9253184,120410.0,120400.0,0.3194476]
[1754926744876,0.9253184,120410.0,120400.0,0.6802476]
[1754926745075,0.9253184,120410.0,120400.0,0.3194476]
[1754926745280,0.9253184,120410.0,120400.0,0.6802476]
[1754926745682,0.0995984,120410.0,120400.0,0.6802476]
[1754926745985,1.3142093,120420.0,120410.0,0.0830584]
[1754926746179,2.1385493,120420.0,120410.0,1.0209251]
[1754926746488,1.3187793,120420.0,120410.0,1.0209251]
[1754926746673,1.3187793,120420.0,120410.0,0.6601251]
[1754926746878,2.1428593,120420.0,120410.0,0.2155484]
[1754926747203,2.1438593,120420.0,120410.0,0.2155484]
[1754926747484,2.1440193,120420.0,120410.0,0.2155484]
[1754926747679,2.0609633,120420.0,120410.0,0.2155484]
[1754926748180,1.2367233,120420.0,120410.0,0.2155484]
[1754926748581,2.0603233,120420.0,120410.0,0.2155484]
[1754926749480,1.2367233,120420.0,120410.0,0.2155484]
[1754926749881,2.0602433,120420.0,120410.0,0.5763484]
[1754926750489,1.149,120420.0,120410.0,1.0616251]
[1754926750786,1.97839,120420.0,120410.0,1.0616251]
[1754926751087,1.97839,120420.0,120410.0,0.6170484]
[1754926751088,1.97835,120420.0,120410.0,0.6170484]
[1754926751289,1.97847,120420.0,120410.0,0.6170484]
[1754926751789,2.0615215,120420.0,120410.0,0.6170484]
[1754926752190,1.2384815,120420.0,120410.0,0.6170484]
[1754926752384,2.0611215,120420.0,120410.0,0.6170484]
[1754926753086,1.15543,120420.0,120410.0,0.6170484]
[1754926753488,1.97308,120420.0,120410.0,1.0616251]
[1754926753784,1.151,120420.0,120410.0,1.0616251]
[1754926753988,1.97272,120420.0,120410.0,1.0616251]
[1754926755188,2.0602015,120420.0,120410.0,1.0616251]
[1754926755383,1.15543,120420.0,120410.0,1.0616251]
[1754926755780,1.97767,120420.0,120410.0,1.0616251]
[1754926756185,1.15543,120420.0,120410.0,1.0616251]
[1754926756390,1.151,120420.0,120410.0,1.0616251]
[1754926756595,1.79721,120420.0,120410.0,1.0616251]
[1754926756989,1.79793,120420.0,120410.0,1.0616251]
[1754926757795,0.82528,120420.0,120410.0,1.0616251]
[1754926757995,0.003,120420.0,120410.0,1.0616251]
[1754926758294,0.8222,120420.0,120410.0,1.3107958]
[1754926758893,0.0001,120430.0,120420.0,0.0830515]
[1754926759198,0.57171,120430.0,120420.0,1.0209182]
[1754926759383,0.00833,120430.0,120420.0,1.0209182]
[1754926759584,0.82985,120430.0,120420.0,1.0209182]
[1754926760093,0.82985,120430.0,120420.0,0.5763415]
[1754926760289,0.82985,120430.0,120420.0,0.95961565]
[1754926760700,0.9128946,120430.0,120420.0,0.95961565]
[1754926760996,0.9128946,120430.0,120420.0,0.5803415]
[1754926761188,0.9128946,120430.0,120420.0,0.95961565]
[1754926761389,0.82985,120430.0,120420.0,0.95961565]
[1754926761593,0.9128946,120430.0,120420.0,0.95961565]
[1754926761795,0.9121346,120430.0,120420.0,0.5833415]
[1754926761999,0.9121346,120430.0,120420.0,0.96261565]
[1754926763185,0.9121346,120430.0,120420.0,1.06251565]
[1754926764095,0.4951792,120430.0,120420.0,0.70171565]
[1754926764295,0.0830446,120430.0,120420.0,0.2678115]
[1754926764588,0.0830446,120430.0,120420.0,0.2142815]
[1754926764794,0.9021646,120430.0,120420.0,0.5887815]
[1754926764995,0.0830446,120430.0,120420.0,0.3224415]
[1754926765197,0.9018446,120430.0,120420.0,1.06251565]
[1754926765596,0.34078564,120440.0,120420.0,0.84934]
[1754926765891,0.34078564,120440.0,120430.0,0.1072746]
[1754926766088,1.15928564,120440.0,120430.0,0.1073746]
[1754926766284,1.15928564,120440.0,120430.0,0.1620046]
[1754926766488,1.15928564,120440.0,120430.0,0.1757046]
[1754926767087,1.15928564,120440.0,120430.0,0.1073746]
[1754926767088,1.52008564,120440.0,120430.0,0.1073746]
[1754926767493,1.51968564,120440.0,120430.0,0.1173746]
[1754926767702,1.08075979,120440.0,120430.0,0.1173746]
[1754926768102,1.89879979,120440.0,120430.0,0.1073746]
[1754926768304,1.90079979,120440.0,120430.0,0.1073746]
[1754926768607,1.90520979,120440.0,120430.0,0.1073746]
[1754926768793,1.52585564,120440.0,120430.0,0.1073746]
[1754926768999,1.54432979,120440.0,120430.0,0.1073746]
[1754926769295,1.08716979,120440.0,120430.0,0.1073746]
[1754926769500,2.28756394,120440.0,120430.0,0.0001]
[1754926769707,0.0830446,120430.0,120420.0,0.0999]
[1754926769900,1.65336875,120430.0,120420.0,0.1829515]
[1754926770101,1.65320875,120430.0,120420.0,0.1829515]
[1754926770500,1.65320875,120430.0,120420.0,0.2105115]
[1754926771402,1.65420875,120430.0,120420.0,0.12746]
[1754926771603,1.65356875,120430.0,120420.0,0.1]
[1754926771801,1.65320875,120430.0,120420.0,0.1]
[1754926771996,1.65312875,120430.0,120420.0,0.1]
[1754926772198,1.65412875,120430.0,120420.0,0.1]
[1754926773304,0.83632875,120430.0,120420.0,0.1]
[1754926773899,1.05240875,120430.0,120420.0,0.09569]
[1754926774097,1.86952875,120430.0,120420.0,0.09569]
[1754926774294,1.86928875,120430.0,120420.0,0.09569]
[1754926774495,0.0830791,120380.0,120370.0,0.02756]
[1754926774709,0.083086,120370.0,120360.0,0.02766382]
[1754926774892,1.64032015,120370.0,120360.0,0.02766382]
[1754926775097,0.0830929,120360.0,120350.0,0.0830998]
[1754926775305,0.46236705,120360.0,120350.0,0.1106598]
[1754926775603,0.0830929,120360.0,120350.0,1.12752795]
[1754926775791,0.9026729,120360.0,120350.0,1.12752795]
[1754926775991,0.0831929,120360.0,120350.0,1.12752795]
[1754926776200,0.0831929,120360.0,120350.0,0.2212542]
[1754926776507,0.9023529,120360.0,120350.0,0.2212542]
[1754926776704,0.0831929,120360.0,120350.0,0.2212542]
[1754926776904,0.9029529,120360.0,120350.0,0.2212542]
[1754926777101,0.0831929,120360.0,120350.0,0.2212542]
[1754926777305,0.15023842,120360.0,120350.0,0.2212599]
[1754926778006,0.0830999,120350.0,120340.0,0.3040545]
[1754926778200,0.9027599,120350.0,120340.0,0.2493145]
[1754926778506,0.9027599,120350.0,120340.0,0.6935345]
[1754926778806,0.9023999,120350.0,120340.0,1.1933068]
[1754926779006,0.8193,120350.0,120340.0,1.1933068]
[1754926779302,0.8193,120350.0,120340.0,1.1953068]
[1754926779303,0.0001,120350.0,120340.0,1.1953068]
[1754926779502,0.8193,120350.0,120340.0,1.1953068]
[1754926779701,0.0001,120350.0,120340.0,1.1953068]
[1754926779897,0.81918,120350.0,120340.0,1.1953068]
[1754926780093,0.81918,120350.0,120340.0,1.1963068]
[1754926780300,0.0831999,120350.0,120340.0,1.1963068]
[1754926780504,0.9017599,120350.0,120340.0,1.1963068]
[1754926780705,0.0001,120350.0,120340.0,1.1963068]
[1754926780909,0.8189,120350.0,120340.0,1.1963068]
[1754926781105,0.5282322,120350.0,120340.0,0.0861068]
[1754926781407,0.9016399,120350.0,120340.0,0.2242668]
[1754926781709,0.0831999,120350.0,120340.0,0.2242668]
[1754926782205,0.9012399,120350.0,120340.0,0.5850668]
[1754926782410,0.81838,120350.0,120340.0,1.0300991]
[1754926782708,0.0001,120350.0,120340.0,1.0300991]
[1754926782910,0.81822,120350.0,120340.0,1.0300991]
[1754926783102,0.0831999,120350.0,120340.0,1.0300991]
[1754926783302,0.0001,120350.0,120340.0,1.0300991]
[1754926783705,0.81782,120350.0,120340.0,1.0300991]
[1754926783906,0.0001,120350.0,120340.0,1.0300991]
[1754926784403,0.8175,120350.0,120340.0,1.0300991]
[1754926785111,0.0001,120350.0,120340.0,1.0300991]
[1754926785506,0.2492711,120370.0,120350.0,0.1661953]
[1754926785700,0.9834587,120370.0,120360.0,0.2212529]
[1754926786100,0.1662787,120370.0,120360.0,0.2212529]
[1754926786299,0.9832787,120370.0,120360.0,0.2212529]
[1754926786500,0.9831187,120370.0,120360.0,0.5820529]
[1754926786802,0.1662787,120370.0,120360.0,0.6819529]
[1754926787006,0.1209987,120370.0,120360.0,0.6819529]
[1754926787200,0.0831818,120380.0,120360.0,1.2931666]
[1754926787402,0.1663648,120380.0,120370.0,0.6104184]
[1754926787608,0.9836748,120380.0,120370.0,0.13816]
[1754926787806,1.4285471,120380.0,120370.0,0.08342]
[1754926788012,1.4283871,120380.0,120370.0,0.02756]
[1754926788203,1.4283871,120380.0,120370.0,0.1106461]
[1754926788816,1.4303871,120380.0,120370.0,0.1106461]
[1754926789221,1.4303871,120380.0,120370.0,0.02756]
[1754926789815,1.50660376,120380.0,120370.0,0.110646]
[1754926790017,0.16156846,120380.0,120370.0,0.144916]
[1754926790316,0.97896586,120380.0,120370.0,0.221246]
[1754926790814,0.89441666,120380.0,120370.0,0.221246]
[1754926791011,0.89535666,120380.0,120370.0,0.221246]
[1754926791215,0.07076553,120380.0,120370.0,0.582046]
[1754926791413,0.88696553,120380.0,120370.0,1.0270783]
[1754926791610,0.88596553,120380.0,120370.0,1.0270783]
[1754926791912,0.88496553,120380.0,120370.0,1.0270783]
[1754926792119,0.88506553,120380.0,120370.0,1.0270783]
[1754926792317,0.88494553,120380.0,120370.0,1.0270783]
[1754926792520,0.06886553,120380.0,120370.0,1.0270783]
[1754926792818,0.88452553,120380.0,120370.0,1.0270783]
[1754926793016,0.06876553,120380.0,120370.0,1.0270783]
[1754926793722,0.88412553,120380.0,120370.0,1.1269783]
[1754926794116,0.88400553,120380.0,120370.0,1.1279783]
[1754926794622,0.88300553,120380.0,120370.0,1.1289783]
[1754926794808,0.88300553,120380.0,120370.0,1.13715253]
[1754926795007,0.96608463,120380.0,120370.0,1.13715253]
[1754926795212,0.88300553,120380.0,120370.0,1.13715253]
[1754926795424,0.46608473,120380.0,120370.0,1.13715253]
[1754926795924,0.38300553,120380.0,120370.0,1.13715253]
[1754926797117,0.0831738,120390.0,120370.0,1.38640603]
[1754926797315,0.8972538,120390.0,120380.0,0.9712115]
[1754926797515,0.81408,120390.0,120380.0,1.0270715]
[1754926797917,0.77208,120390.0,120380.0,1.0270715]
[1754926798122,0.2494061,120400.0,120380.0,1.2763045]
[1754926798324,0.2494061,120400.0,120390.0,0.4438722]
[1754926798530,0.2494561,120400.0,120390.0,0.5878122]
[1754926798724,1.0683961,120400.0,120390.0,0.5878122]
[1754926799025,1.0682361,120400.0,120390.0,0.5878122]
[1754926799215,0.0830713,120400.0,120390.0,0.5878122]
[1754926799416,1.0623739,120400.0,120390.0,0.6877122]
[1754926799622,0.1661426,120400.0,120390.0,0.6877122]
[1754926799820,0.9791426,120400.0,120390.0,0.6877122]
[1754926800125,0.1661426,120400.0,120390.0,0.6877122]
[1754926800318,0.9787826,120400.0,120390.0,0.6877122]
[1754926800620,0.1671426,120400.0,120390.0,0.6877122]
[1754926801127,0.9795826,120400.0,120390.0,0.6877122]
[1754926801719,0.9794626,120400.0,120390.0,0.6877122]
[1754926802121,0.1671426,120400.0,120390.0,0.6877122]
[1754926802322,0.9793826,120400.0,120390.0,0.6877122]
[1754926803024,1.04693023,120400.0,120390.0,0.6877122]
[1754926803729,0.96385893,120400.0,120390.0,0.6877122]
[1754926804625,0.15177893,120400.0,120390.0,0.6877122]
[1754926804830,0.96353893,120400.0,120390.0,0.6877122]
[1754926805530,0.59681123,120400.0,120390.0,0.1]
[1754926805727,0.15177893,120400.0,120390.0,0.1]
[1754926805923,0.0830722,120390.0,120380.0,0.4438787]
[1754926806121,0.5281045,120390.0,120380.0,0.3608]
[1754926806321,0.083086,120370.0,120360.0,0.695925]
[1754926806521,0.5281183,120370.0,120360.0,0.02773]
[1754926806927,1.3393183,120370.0,120360.0,0.02773]
[1754926807223,1.3394183,120370.0,120360.0,0.02773]
[1754926807430,0.894386,120370.0,120360.0,0.1108229]
[1754926807834,0.894386,120370.0,120360.0,0.2269329]
[1754926808133,0.083186,120370.0,120360.0,0.2289329]
[1754926808634,0.894426,120370.0,120360.0,0.2269329]
[1754926809038,0.083186,120370.0,120360.0,0.2269329]
[1754926809329,0.894426,120370.0,120360.0,0.2279329]
[1754926809529,0.90287527,120370.0,120360.0,0.2279329]
[1754926810837,0.894426,120370.0,120360.0,0.2279329]
[1754926811937,0.894466,120370.0,120360.0,0.6729652]
[1754926812433,0.894466,120370.0,120360.0,0.5887329]
[1754926812844,0.81138,120370.0,120360.0,0.5887329]
[1754926813034,0.894466,120370.0,120360.0,0.5887329]
[1754926814240,0.81138,120370.0,120360.0,0.5887329]
[1754926814536,0.0001,120370.0,120360.0,0.5887329]
[1754926814838,0.81138,120370.0,120360.0,1.0337652]
[1754926815645,0.894466,120370.0,120360.0,1.0337652]
[1754926815842,0.083186,120370.0,120360.0,1.0337652]
[1754926816143,0.81134,120370.0,120360.0,1.0337652]
[1754926816943,0.894426,120370.0,120360.0,1.0337652]
[1754926817832,0.81134,120370.0,120360.0,1.0337652]
[1754926818033,0.0001,120370.0,120360.0,1.0337652]
[1754926818449,0.81134,120370.0,120360.0,1.0337652]
[1754926820038,0.8113,120370.0,120360.0,1.0337652]
[1754926820244,0.0001,120370.0,120360.0,1.0337652]
[1754926820447,0.8113,120370.0,120360.0,1.0643652]
[1754926821040,2.3113,120370.0,120360.0,1.0643652]
[1754926821241,1.5001,120370.0,120360.0,1.0643652]
[1754926821438,2.3113,120370.0,120360.0,1.0643652]
[1754926822332,1.5001,120370.0,120360.0,1.0643652]
[1754926822539,0.0001,120370.0,120360.0,1.0643652]
[1754926822740,0.0001,120370.0,120360.0,0.6193329]
[1754926823046,1.583186,120370.0,120360.0,0.6193329]
[1754926823446,2.394346,120370.0,120360.0,0.6193329]
[1754926823738,1.583186,120370.0,120360.0,0.6193329]
[1754926824045,2.31122,120370.0,120360.0,1.0643652]
[1754926824644,1.5001,120370.0,120360.0,1.0643652]
[1754926825139,2.31122,120370.0,120360.0,1.0643652]
[1754926825938,0.332307,120390.0,120380.0,0.0830791]
[1754926826140,1.143427,120390.0,120380.0,0.5650091]
[1754926826539,0.332307,120390.0,120380.0,0.1108091]
[1754926826739,1.143427,120390.0,120380.0,0.1807391]
[1754926826942,1.15184135,120390.0,120380.0,0.2042091]
[1754926827147,1.144427,120390.0,120380.0,0.2042091]
[1754926827344,0.333307,120390.0,120380.0,0.5650091]
[1754926827549,1.0633489,120390.0,120380.0,0.5877191]
[1754926828046,0.8971922,120390.0,120380.0,1.0327514]
[1754926828247,0.81412,120390.0,120380.0,1.0327514]
[1754926828448,0.82373,120390.0,120380.0,1.0327514]
[1754926828647,0.82173,120390.0,120380.0,1.0327514]
[1754926829036,0.82173,120390.0,120380.0,0.5877191]
[1754926829242,0.82073,120390.0,120380.0,0.5877191]
[1754926829442,0.81901,120390.0,120380.0,0.6876191]
[1754926829843,0.16765652,120400.0,120380.0,1.2988051]
[1754926830044,0.08724002,120400.0,120390.0,0.5322821]
[1754926830242,0.08714002,120400.0,120390.0,1.0451838]
[1754926830746,0.89822002,120400.0,120390.0,1.0451838]
[1754926831247,0.08714002,120400.0,120390.0,1.0451838]
[1754926831451,2.48824532,120400.0,120390.0,0.74064009]
[1754926831649,2.48824532,120400.0,120390.0,0.74164009]
[1754926831952,2.48824532,120400.0,120390.0,0.75083792]
[1754926832161,0.9011053,120400.0,120390.0,0.75083792]
[1754926832446,0.00696,120400.0,120390.0,1.19487022]
[1754926832750,0.81804,120400.0,120390.0,1.19587022]
[1754926832951,0.81804,120400.0,120390.0,0.75083792]
[1754926833352,0.81796,120400.0,120390.0,1.19587022]
[1754926833555,0.81796,120400.0,120390.0,1.19687022]
[1754926834460,0.0831587,120410.0,120400.0,0.0830653]
[1754926834647,0.8967787,120410.0,120400.0,0.5917953]
[1754926834958,0.81372,120410.0,120400.0,0.5917953]
[1754926835252,0.8967784,120410.0,120400.0,0.5917953]
[1754926835452,0.0857784,120410.0,120400.0,0.2309953]
[1754926835652,0.0857784,120410.0,120400.0,0.5917953]
[1754926835952,0.8967384,120410.0,120400.0,0.5917953]
[1754926836459,0.96374944,120410.0,120400.0,0.5917953]
[1754926837553,0.96544944,120410.0,120400.0,0.5917953]
[1754926838345,0.06701104,120410.0,120400.0,0.5917953]
[1754926838549,0.81096,120410.0,120400.0,0.5917953]
[1754926838952,0.81096,120410.0,120400.0,0.97123134]
[1754926839248,0.0830583,120410.0,120400.0,0.5917953]
[1754926839456,0.8939783,120410.0,120400.0,0.5917953]
[1754926839960,0.81092,120410.0,120400.0,0.5917953]
[1754926840146,0.81092,120410.0,120400.0,0.8409866]
[1754926840651,0.81092,120410.0,120400.0,1.22042264]
[1754926840852,0.81092,120410.0,120400.0,0.8409866]
[1754926841250,0.62870414,120420.0,120410.0,0.0830584]
[1754926841251,0.0001,120420.0,120410.0,0.0830584]
[1754926841557,2.3939715,120420.0,120410.0,0.840953]
[1754926841961,2.31092,120420.0,120410.0,0.840953]
[1754926842160,2.3939715,120420.0,120410.0,0.840953]
[1754926842455,2.3949715,120420.0,120410.0,0.840953]
[1754926842658,2.3969715,120420.0,120410.0,0.840953]
[1754926842860,2.31392,120420.0,120410.0,0.940853]
[1754926844453,2.31384,120420.0,120410.0,0.940853]
[1754926844654,2.31753,120420.0,120410.0,1.32028904]
[1754926844855,1.00669,120420.0,120410.0,1.32028904]
[1754926845062,1.81749,120420.0,120410.0,1.32028904]
[1754926845762,1.00669,120420.0,120410.0,1.32028904]
[1754926845963,1.97162869,120420.0,120410.0,0.822663]
[1754926846164,1.97162869,120420.0,120410.0,0.919363]
[1754926846355,1.90106473,120420.0,120410.0,0.3788046]
[1754926846662,2.71186473,120420.0,120410.0,0.1830584]
[1754926846961,1.71186473,120420.0,120410.0,0.1830584]
[1754926847165,0.90106473,120420.0,120410.0,0.1830584]
[1754926847459,1.72346473,120420.0,120410.0,0.1830584]
[1754926847652,0.91270473,120420.0,120410.0,0.1830584]
[1754926847857,1.72346473,120420.0,120410.0,0.1830584]
[1754926848362,1.70921473,120420.0,120410.0,0.1830584]
[1754926848762,1.70917473,120420.0,120410.0,0.1830584]
[1754926848956,0.89845473,120420.0,120410.0,0.2126984]
[1754926849158,1.70917473,120420.0,120410.0,0.2126984]
[1754926849457,1.70917473,120420.0,120410.0,0.1830584]
[1754926849861,0.89845473,120420.0,120410.0,0.1830584]
[1754926850060,1.70917473,120420.0,120410.0,0.1830584]
[1754926850257,0.89845473,120420.0,120410.0,0.2126984]
[1754926850461,1.70917473,120420.0,120410.0,0.2126984]
[1754926851057,1.70917473,120420.0,120410.0,0.1]
[1754926851259,1.70913473,120420.0,120410.0,0.09641]
[1754926851560,1.87523073,120420.0,120410.0,0.09641]
[1754926851760,1.11455073,120420.0,120410.0,0.09641]
[1754926851956,2.30466677,120420.0,120410.0,0.09641]
[1754926852162,1.92523073,120420.0,120410.0,0.09641]
[1754926852464,1.54579469,120420.0,120410.0,0.09641]
[1754926852665,1.11465073,120420.0,120410.0,0.09651]
[1754926852866,1.92533073,120420.0,120410.0,0.09651]
[1754926853663,1.11465073,120420.0,120410.0,0.09651]
[1754926853860,1.92537073,120420.0,120410.0,0.09651]
[1754926854164,1.99076321,120420.0,120410.0,0.09651]
[1754926854865,1.94072321,120420.0,120410.0,0.09651]
[1754926855261,1.13004321,120420.0,120410.0,0.09651]
[1754926855464,1.94072321,120420.0,120410.0,0.09651]
[1754926855663,1.13004321,120420.0,120410.0,0.12615]
[1754926855863,1.77466721,120420.0,120410.0,0.12615]
[1754926856165,0.96394721,120420.0,120410.0,0.09651]
[1754926856361,1.77466721,120420.0,120410.0,0.09651]
[1754926856566,1.13004321,120420.0,120410.0,0.09651]
[1754926856963,1.94076321,120420.0,120410.0,0.09651]
[1754926857560,0.0830653,120400.0,120390.0,0.02964]
[1754926857767,2.52174884,120400.0,120390.0,0.02964]
[1754926858263,2.52174884,120400.0,120390.0,0.03314]
[1754926858468,1.27131032,120400.0,120390.0,0.03314]
[1754926858661,0.4656818,120400.0,120390.0,0.03314]
[1754926858859,1.2845718,120400.0,120390.0,0.1193122]
[1754926859867,0.4738918,120400.0,120390.0,0.1193122]
[1754926860171,0.9238118,120400.0,120390.0,0.1193122]
[1754926860670,1.2846118,120400.0,120390.0,0.1193122]
[1754926860866,1.2856118,120400.0,120390.0,0.1183122]
[1754926861174,1.2866118,120400.0,120390.0,0.1163122]
[1754926863070,0.1150918,120400.0,120390.0,0.1163122]
[1754926863270,0.9257718,120400.0,120390.0,0.1163122]
[1754926863569,0.9257318,120400.0,120390.0,0.1163122]
[1754926863871,0.1150918,120400.0,120390.0,0.1163122]
[1754926864073,0.9257318,120400.0,120390.0,0.1163122]
[1754926865267,0.0320265,120400.0,120390.0,0.56114072]
[1754926865463,0.8426265,120400.0,120390.0,0.1163122]
[1754926865669,0.0320265,120400.0,120390.0,0.4771122]
[1754926865871,0.8426265,120400.0,120390.0,0.4771122]
[1754926866175,0.8425865,120400.0,120390.0,0.4771122]
[1754926867177,0.0320265,120400.0,120390.0,0.4771122]
[1754926867375,0.8425865,120400.0,120390.0,0.4771122]
[1754926868269,0.8425865,120400.0,120390.0,0.92194072]
[1754926868670,0.8425065,120400.0,120390.0,0.92194072]
[1754926868871,0.0320265,120400.0,120390.0,0.92194072]
[1754926869074,0.8343965,120400.0,120390.0,0.92194072]
[1754926869671,0.8293265,120400.0,120390.0,0.89230072]
[1754926869866,0.0021,120400.0,120390.0,0.89230072]
[1754926870078,0.39972569,120420.0,120410.0,0.0830583]
[1754926870276,0.06749719,120420.0,120410.0,0.88868682]
[1754926870578,0.0830515,120420.0,120410.0,0.4438583]
[1754926870874,0.8934915,120420.0,120410.0,0.4438583]
[1754926871470,0.8944915,120420.0,120410.0,0.4438583]
[1754926871667,0.5026215,120420.0,120410.0,0.4439583]
[1754926871871,0.585673,120420.0,120410.0,0.5438583]
[1754926872272,0.65362183,120420.0,120410.0,0.5438583]
[1754926872673,0.65462183,120420.0,120410.0,0.5438583]
[1754926873879,0.57157033,120420.0,120410.0,0.5438583]
[1754926874180,0.07004883,120420.0,120410.0,0.5438583]
[1754926874481,0.96342023,120420.0,120410.0,0.5438583]
[1754926875380,0.88036883,120420.0,120410.0,0.5438583]
[1754926876180,0.07004883,120420.0,120410.0,0.5438583]
[1754926876382,0.96330023,120420.0,120410.0,0.5438583]
[1754926876570,0.75331023,120420.0,120410.0,0.5437583]
[1754926876775,0.46242569,120420.0,120410.0,0.5437583]
[1754926877175,0.96011063,120420.0,120410.0,0.5437583]
[1754926877781,0.96667063,120420.0,120410.0,0.3447083]
[1754926877979,0.15933063,120420.0,120410.0,0.3448083]
[1754926878179,1.34882492,120420.0,120410.0,0.2165983]
[1754926879685,1.34874492,120420.0,120410.0,0.1830583]
[1754926879875,1.34874492,120420.0,120410.0,0.2165983]
[1754926880273,1.34727492,120420.0,120410.0,0.2165983]
[1754926880782,1.34723492,120420.0,120410.0,0.2165983]
[1754926880981,1.34723492,120420.0,120410.0,0.1830583]
[1754926881175,1.70803492,120420.0,120410.0,0.1]
[1754926881375,1.87413092,120420.0,120410.0,0.09718]
[1754926881775,1.11413092,120420.0,120410.0,0.09493]
[1754926881984,2.30346521,120420.0,120410.0,0.09493]
[1754926882282,1.92409092,120420.0,120410.0,0.09493]
[1754926882682,1.54471663,120420.0,120410.0,0.09493]
[1754926882882,1.92409092,120420.0,120410.0,0.09493]
[1754926883084,1.11413092,120420.0,120410.0,0.09493]
[1754926883282,1.92409092,120420.0,120410.0,0.09493]
[1754926884280,1.17965281,120420.0,120410.0,0.09493]
[1754926884581,0.083079,120380.0,120370.0,0.1166259]
[1754926884783,1.69869518,120380.0,120370.0,0.2448359]
[1754926884986,0.892999,120380.0,120370.0,0.2448359]
[1754926885181,0.0830859,120370.0,120360.0,0.39783099]
[1754926885378,0.8929659,120370.0,120360.0,0.55958099]